fUSD/lending_fUSD_20240118
["ID","MTS","AMOUNT","RATE_DAILY","PERIOD"]
[312047360,1705573832073,-1482.96009176,0.00022105,2]
[312047362,1705573832085,-1845.0,0.00022105,2]
[312047363,1705573832109,-713.18,0.00022106,2]
[312047364,1705573832118,-725.81,0.00022106,2]
[312047365,1705573832127,-714.86,0.00022106,2]
[312047366,1705573832137,-716.93,0.00022106,2]
[312047367,1705573832146,-289.89274254,0.00022106,2]
[312047368,1705573832158,-435.73725746,0.00022106,2]
[312047369,1705573832168,-140.58764825,0.00022106,2]
[312047370,1705573832179,-399.2023011,0.00022106,2]
[312047371,1705573832190,-196.91005065,0.00022106,2]
[312047372,1705573832200,-361.61302966,0.00022106,2]
[312047373,1705573832211,-362.10697034,0.00022106,2]
[312047374,1705573832221,-162.51633052,0.00022106,2]
[312047375,1705573832233,-5759.17440953,0.00022106,2]
[312047376,1705573832248,-250.0,0.00022106,2]
[312047377,1705573832259,-2277.7,0.00022106,2]
[312047378,1705573832285,-567.0516138,0.00022106,2]
[312047379,1705573832297,-1100.0,0.00022106,2]
[312047380,1705573832309,-11607.79260859,0.00022106,2]
[312047381,1705573832345,-5695.86001743,0.00022106,2]
[312047402,1705573838115,-1704.77468899,0.00022106,2]
[312047403,1705573838173,-531.04371701,0.00022106,2]
[312047404,1705573838287,-2876.05948541,0.00022106,2]
[312047405,1705573838299,-1545.65765253,0.00022106,2]
[312047406,1705573838346,-979.31412629,0.00022106,2]
[312047407,1705573838357,-1335.6738995,0.00022106,2]
[312047408,1705573838368,-2103.3787534,0.00022106,2]
[312047409,1705573838380,-4526.79899782,0.00022106,2]
[312047411,1705573838426,-2238.9233072,0.00022106,2]
[312047413,1705573838437,-2630.10833052,0.00022106,2]
[312047416,1705573838448,-638.89389986,0.00022106,2]
[312047580,1705573840577,-1469.2781616,0.00022106,2]
[312047581,1705573840587,-734.11,0.00022108,2]
[312047582,1705573840597,-713.53,0.00022108,2]
[312047583,1705573840607,-738.47,0.00022108,2]
[312047584,1705573840617,-725.03,0.00022108,2]
[312047585,1705573840626,-711.74,0.00022108,2]
[312047586,1705573840636,-718.95,0.00022108,2]
[312047587,1705573840647,-729.43,0.0002211,2]
[312047588,1705573840658,-733.73,0.0002211,2]
[312047589,1705573840666,-156.85,0.00022134,2]
[312047590,1705573840676,-164.58349255,0.00022155,2]
[312047591,1705573840684,-157.23,0.00022167,2]
[312047592,1705573840693,-172.53438277,0.00022217,3]
[312047593,1705573840703,-150.99,0.00022295,2]
[312047594,1705573840712,-164.58349255,0.00022304,2]
[312047595,1705573840721,-23132.0,0.000224,2]
[312047596,1705573840732,-3157.0,0.000224,2]
[312047597,1705573840741,-1391.14,0.000224,2]
[312047598,1705573840750,-164.58349255,0.00022453,2]
[312047599,1705573840759,-166.66,0.00022499,2]
[312047600,1705573840768,-319.0,0.00022504,2]
[312047601,1705573840777,-7353.0,0.00022504,2]
[312047602,1705573840787,-5578.0,0.00022504,2]
[312047603,1705573840796,-8097.0,0.00022504,2]
[312047604,1705573840805,-2272.0,0.00022504,2]
[312047605,1705573840815,-19705.0,0.00022504,2]
[312047606,1705573840824,-2904.0,0.00022504,2]
[312047607,1705573840833,-835.0,0.00022504,2]
[312047608,1705573840842,-4175.0,0.00022504,2]
[312047609,1705573840852,-1234.0,0.00022504,2]
[312047610,1705573840861,-1257.0,0.00022504,2]
[312047611,1705573840870,-1029.0,0.00022504,2]
[312047612,1705573840880,-1934.0,0.00022504,2]
[312047613,1705573840889,-150.0,0.00022548,2]
[312047614,1705573840898,-157.23,0.00022563,2]
[312047615,1705573840908,-1405.95,0.00022565,2]
[312047616,1705573840917,-164.58349255,0.00022602,2]
[312047617,1705573840926,-726.89,0.00022699,2]
[312047618,1705573840936,-588.44,0.000227,2]
[312047619,1705573840945,-155.0,0.00022701,2]
[312047620,1705573840954,-164.58349255,0.00022751,2]
[312047621,1705573840963,-494.2607926,0.00022764,2]
[312047622,1705573840972,-154.0,0.00022766,2]
[312047623,1705573840981,-200.0,0.00022779,2]
[312047624,1705573840994,-800.0,0.00022811,2]
[312047625,1705573841004,-200.0,0.00022812,2]
[312047626,1705573841013,-800.0,0.00022812,2]
[312047627,1705573841022,-359.56,0.00022815,2]
[312047628,1705573841032,-1250.96,0.00022894,2]
[312047629,1705573841041,-2927.2926,0.00022896,2]
[312047630,1705573841049,-438.36959061,0.00022897,2]
[312047631,1705573841060,-438.36959054,0.00022897,2]
[312047632,1705573841069,-438.36959054,0.00022898,2]
[312047633,1705573841079,-438.36959054,0.00022898,2]
[312047634,1705573841088,-438.36959054,0.00022899,2]
[312047635,1705573841097,-438.36959054,0.00022899,2]
[312047636,1705573841106,-438.36959054,0.000229,2]
[312047637,1705573841117,-250.0,0.000229,2]
[312047638,1705573841126,-2381.072902,0.000229,2]
[312047639,1705573841136,-164.58349255,0.000229,2]
[312047640,1705573841145,-152.01543011,0.000229,2]
[312047641,1705573841155,-638.89,0.000229,2]
[312047642,1705573841164,-438.36959054,0.000229,2]
[312047643,1705573841173,-195.00618662,0.000229,4]
[312047644,1705573841182,-413.20549523,0.000229,2]
[312047645,1705573841192,-157.23,0.00022959,2]
[312047646,1705573841201,-215.48725571,0.00022994,2]
[312047647,1705573841211,-24336.72833453,0.00022994,2]
[312047648,1705573841220,-5340.03221984,0.00022994,2]
[312047649,1705573841229,-417.38701899,0.00022994,2]
[312047650,1705573841239,-842.51048405,0.00022994,2]
[312047651,1705573841248,-327.560493,0.00022994,2]
[312047652,1705573841257,-12298.83057596,0.00022994,2]
[312047653,1705573841267,-302.00312186,0.00022994,2]
[312047654,1705573841276,-189.29203962,0.00022994,2]
[312047655,1705573841286,-220.903327,0.00022994,2]
[312047656,1705573841295,-3762.65897772,0.00022994,2]
[312047657,1705573841304,-1146.85827717,0.00022994,2]
[312047658,1705573841314,-10513.08241403,0.00022994,2]
[312047659,1705573841323,-515.0003462,0.00022994,2]
[312047660,1705573841332,-260.29839999,0.00022994,2]
[312047661,1705573841346,-7778.02316605,0.00022994,2]
[312047662,1705573841355,-525.23074402,0.00022994,2]
[312047663,1705573841365,-150.01,0.00022995,2]
[312047664,1705573841374,-3296.21810704,0.00022995,2]
[312047665,1705573841384,-3000.0,0.00022996,2]
[312047667,1705573841393,-150.0,0.00022996,2]
[312047668,1705573841403,-39751.79077228,0.00022997,2]
[312047669,1705573841436,-41292.44452308,0.00022997,2]
[312047670,1705573841446,-3.85436397,0.00022997,2]
[312047671,1705573841458,-4591.53788084,0.00022997,2]
[312047672,1705573841468,-346.30115323,0.00022998,2]
[312047673,1705573841479,-647.17829278,0.00022999,2]
[312047674,1705573841489,-150.0,0.00022999,2]
[312047675,1705573841499,-150.0,0.00022999,2]
[312047676,1705573841509,-1173.0,0.00022999,2]
[312047677,1705573841520,-2092.59309281,0.00022999,3]
[312047678,1705573841533,-20201.26103875,0.00022999,3]
[312047679,1705573841599,-683.1306481,0.00022999,3]
[312047680,1705573841614,-698.68555518,0.00022999,3]
[312047681,1705573841692,-46116.98194794,0.00022999,3]
[312047682,1705573841705,-82652.80520287,0.00022999,3]
[312047683,1705573841717,-390.96466,0.00022999,3]
[312047684,1705573841732,-6555.7517514,0.00022999,3]
[312047685,1705573841744,-349.02596104,0.00022999,3]
[312047695,1705573843175,-1610.1893674,0.00022999,3]
[312047696,1705573843187,-377.90217753,0.00022999,3]
[312047697,1705573843235,-11745.34800591,0.00022999,3]
[312047698,1705573843247,-296.95776435,0.00022999,3]
[312047699,1705573843258,-1060.31500001,0.00022999,3]
[312047700,1705573843270,-566.62860673,0.00022999,3]
[312047701,1705573843352,-4708.39372862,0.00022999,3]
[312047707,1705573844408,280.44,0.00019827,2]
[312047708,1705573844906,280.44,0.00022091,2]
[312047711,1705573846517,-150.0,0.00022586,2]
[312047712,1705573846526,-271.6775717,0.00022999,3]
[312047713,1705573846538,-30368.65862832,0.00022999,3]
[312047714,1705573846550,-1652.23369807,0.00022999,3]
[312047715,1705573846566,-1445.347011,0.00022999,3]
[312047716,1705573923589,709.68,0.000221,2]
[312047717,1705573932230,1343.56,0.00022101,30]
[312047718,1705573947380,729.32,0.000221,2]
[312047720,1705573965268,1000.0,0.000221,2]
[312047721,1705573971326,713.91,0.000221,2]
[312047722,1705573984089,150.0,0.00021999,2]
[312047724,1705573994146,734.47,0.000221,2]
[312047727,1705574003713,1738.84,0.00022005,2]
[312047728,1705574012210,734.45,0.000221,2]
[312047729,1705574164980,311.61,0.00021912,2]
[312047730,1705574254609,155.42,0.000219,2]
[312047731,1705574270373,843.57,0.0002192,2]
[312047732,1705574277943,263.48,0.00019995,2]
[312047733,1705574295343,154.46,0.00022091,2]
[312047734,1705574303626,404.72,0.00021863,2]
[312047735,1705574323546,250.0,0.00021918,2]
[312047736,1705574356996,2000.0,0.00021863,2]
[312047737,1705574397955,166.66,0.00022072,2]
[312047738,1705574523016,2250.0,0.00022,3]
[312047739,1705574524115,207.0,0.00021272,2]
[312047740,1705574663079,219.33,0.00021922,2]
[312047741,1705574672781,316.73,0.00021933,2]
[312047743,1705574723969,271.36,0.00020031,2]
[312047748,1705574750900,676.22,0.00021951,2]
[312047749,1705574752528,151.02,0.00021951,2]
[312047750,1705574779841,674.85,0.0002191,2]
[312047751,1705574795786,250.0,0.00021918,2]
[312047752,1705574801576,243.27,0.00021933,2]
[312047790,1705574976266,120.35485252,0.00021902,2]
[312047791,1705574976289,3177.18514748,0.00021902,2]
[312047792,1705575005430,500.0,0.00019726,2]
[312047793,1705575005764,500.0,0.00019906,2]
[312047794,1705575006108,500.0,0.00020086,2]
[312047795,1705575006474,500.0,0.00020266,2]
[312047796,1705575006821,500.0,0.00020447,2]
[312047797,1705575007181,500.0,0.00020627,2]
[312047798,1705575007519,500.0,0.00020807,2]
[312047799,1705575007864,500.0,0.00020987,2]
[312047800,1705575008219,500.0,0.00021167,2]
[312047801,1705575009055,500.0,0.00021347,2]
[312047802,1705575009415,500.0,0.00021527,2]
[312047803,1705575009748,500.0,0.00021708,2]
[312047804,1705575010138,500.0,0.00021888,2]
[312047805,1705575010505,500.0,0.00022068,7]
[312047817,1705575033688,-735.43214998,0.00022151,2]
[312047818,1705575033746,-205.65300658,0.00022151,2]
[312047819,1705575033755,-158.05,0.00022152,2]
[312047820,1705575033765,-522.39890413,0.00022154,2]
[312047821,1705575033777,-206.01109587,0.00022154,2]
[312047822,1705575033787,-500.0,0.00022248,7]
[312047823,1705575033796,-151.02,0.00022289,2]
[312047824,1705575033806,-271.36,0.00022295,2]
[312047825,1705575033815,-500.0,0.00022428,7]
[312047826,1705575033824,-1793.48948787,0.000225,2]
[312047827,1705575033836,-849.08324174,0.000225,2]
[312047828,1705575033848,-644.42727039,0.000225,2]
[312047829,1705575033857,-150.0,0.00022547,2]
[312047830,1705575033866,-208.86272961,0.00022558,2]
[312047831,1705575033877,-1025.13727039,0.00022558,2]
[312047832,1705575033886,-1249.0,0.00022558,2]
[312047833,1705575033896,-476.788,0.00022558,2]
[312047834,1705575033905,-8087.0,0.00022558,2]
[312047835,1705575033916,-304.087,0.00022558,2]
[312047836,1705575033925,-19300.6,0.00022558,2]
[312047837,1705575033935,-7345.0,0.00022558,2]
[312047838,1705575033944,-1933.32054812,0.00022558,2]
[312047839,1705575033957,-448.87925568,0.00022558,2]
[312047840,1705575033969,-652.8881962,0.00022558,2]
[312047841,1705575033978,-168.127,0.00022558,2]
[312047842,1705575033987,-96.6048038,0.00022558,2]
[312047843,1705575034000,-53.3951962,0.00022558,2]
[312047844,1705575034009,-150.589,0.00022558,2]
[312047845,1705575034019,-1029.0,0.00022558,2]
[312047846,1705575034028,-500.0,0.00022608,7]
[312047847,1705575034037,-151.02,0.00022626,2]
[312047848,1705575034047,-709.84,0.00022679,2]
[312047851,1705575034056,-1069.26,0.00022679,2]
[312047853,1705575034066,-155.0,0.00022701,2]
[312047856,1705575034075,-674.85,0.00022721,2]
[312047858,1705575034084,-154.0,0.00022766,2]
[312047860,1705575034093,-1522.80834143,0.0002277,2]
[312047865,1705575034132,-159.578,0.00022558,2]
[312047867,1705575034141,-2193.74933283,0.0002277,2]
[312047917,1705575038258,-200.0,0.00022558,2]
[312047918,1705575038267,-1699.44232574,0.0002277,2]
[312047919,1705575038276,-221.33775642,0.0002277,3]
[312047920,1705575038286,-500.0,0.00022789,7]
[312047921,1705575038296,-408.55,0.000228,2]
[312047922,1705575038305,-418.41,0.000228,2]
[312047923,1705575038315,-150.0,0.000228,2]
[312047924,1705575038324,-301.11,0.000228,2]
[312047925,1705575038333,-150.0,0.000228,2]
[312047926,1705575038342,-150.0,0.000228,2]
[312047927,1705575038351,-408.55,0.000228,2]
[312047928,1705575038360,-150.0,0.000228,2]
[312047929,1705575038370,-150.0,0.000228,2]
[312047930,1705575038379,-294.22,0.000228,2]
[312047931,1705575038388,-418.41,0.000228,2]
[312047932,1705575038397,-150.0,0.000228,2]
[312047933,1705575038406,-150.0,0.000228,2]
[312047934,1705575038416,-408.55,0.000228,2]
[312047935,1705575038425,-150.0,0.000228,2]
[312047936,1705575038434,-417.9,0.000228,2]
[312047937,1705575038443,-150.0,0.000228,2]
[312047938,1705575038453,-150.0,0.000228,2]
[312047939,1705575038463,-407.95,0.000228,2]
[312047940,1705575038472,-150.0,0.000228,2]
[312047941,1705575038481,-200.0,0.00022813,2]
[312047942,1705575038491,-200.0,0.00022813,2]
[312047943,1705575038500,-800.0,0.00022814,2]
[312047944,1705575038509,-185.47617335,0.00022822,2]
[312047945,1705575038518,-300.0,0.00022844,2]
[312047946,1705575038526,-150.0,0.00022865,2]
[312047947,1705575038535,-300.0,0.00022898,2]
[312047948,1705575038544,-532.8153,0.000229,2]
[312047949,1705575038553,-169.54621273,0.000229,6]
[312047950,1705575038562,-152.01543011,0.000229,2]
[312047951,1705575038571,-167.62510282,0.000229,2]
[312047952,1705575038579,-316.73,0.00022911,2]
[312047953,1705575038588,-150.0,0.0002294,2]
[312047954,1705575038597,-151.02,0.00022964,2]
[312047955,1705575038606,-500.0,0.00022969,7]
[312047956,1705575038615,-150.0,0.00022986,2]
[312047957,1705575038624,-400.0,0.00022997,2]
[312047958,1705575038633,-173.07029185,0.00022997,2]
[312047959,1705575038642,-4668.29330698,0.00022997,2]
[312047960,1705575038875,-7650.3361565,0.00022997,2]
[312047961,1705575038885,-197.63805697,0.00022998,2]
[312047962,1705575038894,-3296.21810704,0.00022998,2]
[312047963,1705575038904,-2143.98939105,0.00022998,2]
[312047964,1705575038913,-1728.26168644,0.00022998,2]
[312047965,1705575038998,-1001.34216016,0.00022998,2]
[312047966,1705575039048,-1832.5937189,0.00022998,2]
[312047967,1705575039057,-386.6891831,0.00022998,2]
[312047968,1705575039066,-155.8864168,0.00022998,2]
[312047969,1705575039075,-2954.71417799,0.00022998,2]
[312047970,1705575039084,-2000.0,0.00022999,2]
[312047971,1705575039094,-200.0,0.00022999,2]
[312047972,1705575039102,-150.0,0.00022999,2]
[312047973,1705575039111,-1058.0,0.00022999,2]
[312047974,1705575039120,-30154.31615465,0.00023,3]
[312047975,1705575039136,-3466.66028671,0.00023,3]
[312047976,1705575039148,-485.00846042,0.00023,3]
[312047989,1705575039412,-279.2605638,0.00023,3]
[312047993,1705575039438,-399.37201755,0.00023,3]
[312048126,1705575040699,-1785.63979247,0.00023,3]
[312048176,1705575041482,-1082.02499944,0.00023,3]
[312048215,1705575043238,-4503.24544066,0.00023,3]
[312048228,1705575043359,-6009.74382536,0.00023,3]
[312048230,1705575043371,-10476.05620001,0.00023,3]
[312048237,1705575043554,-75741.45737607,0.00023,3]
[312048388,1705575046267,-300.0,0.000221,8]
[312048389,1705575046277,-150.0,0.00022558,2]
[312048390,1705575046655,-401.69,0.000226,2]
[312048392,1705575046666,-113.43948022,0.00022813,2]
[312048394,1705575046678,-490.00051978,0.00022813,2]
[312048396,1705575046688,-1001.0,0.00022999,2]
[312048398,1705575046698,-59189.34497598,0.00023,3]
[312048400,1705575046715,-5063.69999999,0.00023,3]
[312048403,1705575046731,-1300.81029,0.00023,3]
[312048405,1705575046743,-3614.68000458,0.00023,3]
[312048408,1705575046757,-707.74103951,0.00023,3]
[312048410,1705575046769,-300.0,0.00023,3]
[312048433,1705575109377,362.73,0.00021944,2]
[312048434,1705575138209,222.98,0.0002194,2]
[312048435,1705575177205,219.32,0.00021914,2]
[312048436,1705575188898,150.0,0.00022,2]
[312048437,1705575193511,459.02,0.00021904,2]
[312048439,1705575296687,153.0,0.00021882,2]
[312048441,1705575317162,263.17,0.00019945,2]
[312048442,1705575336127,404.91,0.00021847,2]
[312048443,1705575377350,250.0,0.00021918,2]
[312048444,1705575554893,360.66,0.00021729,2]
[312048445,1705575604989,207.0,0.00021252,2]
[312048446,1705575756212,157.8,0.0002172,2]
[312048447,1705575765317,258.54,0.00019802,2]
[312048448,1705575765636,258.54,0.00022066,2]
[312048449,1705575779787,632.78,0.00021712,2]
[312048450,1705575879799,2267.69,0.0002171,2]
[312048451,1705575926502,250.0,0.00021918,2]
[312048452,1705575936618,4000.55499984,0.000218,2]
[312048454,1705575996374,323.92,0.0002172,2]
[312048476,1705576065767,941.08515656,0.00022099,2]
[312048477,1705576081480,187.99,0.0002169,2]
[312048478,1705576091732,209.03728054,0.00022099,2]
[312048479,1705576098371,1041.25837221,0.00022099,2]
[312048480,1705576120610,357.26,0.00021732,2]
[312048481,1705576140222,941.08515656,0.00022099,2]
[312048482,1705576175868,209.52128775,0.00022099,2]
[312048483,1705576191990,-300.0,0.000221,8]
[312048484,1705576192012,-716.32,0.00022179,2]
[312048485,1705576192032,-722.92,0.00022179,2]
[312048486,1705576192051,-260.76,0.0002218,2]
[312048487,1705576195262,151.76,0.00021695,2]
[312048488,1705576216664,240.78,0.00019828,2]
[312048489,1705576217185,240.78,0.00022092,2]
[312048506,1705576232371,-39.24,0.0002218,2]
[312048507,1705576232382,-710.38,0.00022181,2]
[312048508,1705576232391,-726.48,0.00022181,2]
[312048509,1705576232400,-716.14,0.00022181,2]
[312048510,1705576232409,-941.08515656,0.00022182,2]
[312048511,1705576232418,-732.93,0.00022183,2]
[312048512,1705576232427,-713.35,0.00022183,2]
[312048513,1705576232436,-1533.87574325,0.00022183,2]
[312048514,1705576232447,-858.16390953,0.00022183,2]
[312048515,1705576232459,-1759.27377764,0.00022183,2]
[312048516,1705576232470,-2961.70000088,0.00022183,2]
[312048517,1705576232481,-23223.62945614,0.00022183,2]
[312048518,1705576232495,-265.25084561,0.00022183,2]
[312048519,1705576232507,-568.82257769,0.00022183,2]
[312048520,1705576232541,-2164.39740596,0.00022183,2]
[312048521,1705576232553,-390.87776714,0.00022183,2]
[312048522,1705576232610,-319.91350895,0.00022183,2]
[312048523,1705576232623,-14009.98028182,0.00022183,2]
[312048524,1705576232636,-435.76232948,0.00022183,2]
[312048525,1705576232648,-1508.35239591,0.00022183,2]
[312048526,1705576232658,-737.57,0.00022184,2]
[312048527,1705576232667,-157.8,0.00022185,2]
[312048528,1705576232677,-214.01841058,0.00022186,2]
[312048529,1705576232690,-622.43652369,0.00022186,2]
[312048530,1705576232703,-2405.57506573,0.00022186,2]
[312048531,1705576232713,-336.72644927,0.00022186,2]
[312048534,1705576232729,-163.26355073,0.00022186,2]
[312048536,1705576232739,-717.05,0.00022186,2]
[312048538,1705576232750,-722.43,0.00022186,2]
[312048540,1705576232759,-712.86,0.00022187,2]
[312048542,1705576232768,-724.7,0.00022188,2]
[312048544,1705576232778,-712.31,0.00022188,2]
[312048546,1705576232787,-735.16,0.0002219,2]
[312048548,1705576232796,-721.32,0.00022191,2]
[312048550,1705576232805,-732.26,0.00022191,2]
[312048552,1705576232814,-721.36,0.00022193,2]
[312048554,1705576232824,-724.28,0.00022193,2]
[312048556,1705576232833,-722.31,0.00022194,2]
[312048558,1705576232842,-150.99,0.00022194,2]
[312048559,1705576232852,-715.01,0.00022195,2]
[312048560,1705576232862,-719.07,0.00022195,2]
[312048561,1705576232871,-720.21,0.00022196,2]
[312048562,1705576232887,-712.66,0.00022196,2]
[312048563,1705576232897,-731.66,0.00022196,2]
[312048564,1705576232906,-700.0,0.000222,8]
[312048565,1705576232915,-1100.0,0.000223,8]
[312048566,1705576232925,-25304.41473471,0.00022358,2]
[312048567,1705576232937,-15238.95616529,0.00022358,2]
[312048568,1705576232947,-1500.0,0.000224,8]
[312048569,1705576232957,-802.197,0.00022458,2]
[312048570,1705576232967,-23842.0,0.000225,2]
[312048571,1705576232976,-188.11,0.000225,2]
[312048572,1705576232986,-150.0,0.000225,2]
[312048573,1705576232996,-150.0,0.000225,2]
[312048574,1705576233005,-272.32,0.000225,2]
[312048575,1705576233016,-1900.0,0.000225,8]
[312048576,1705576233026,-323.92,0.00022524,2]
[312048577,1705576233035,-2272.0,0.00022526,2]
[312048578,1705576233045,-19697.0,0.00022526,2]
[312048579,1705576233054,-1029.0,0.00022526,2]
[312048580,1705576233064,-150.0,0.00022548,2]
[312048581,1705576233074,-300.0,0.000226,8]
[312048582,1705576233084,-157.8,0.00022651,2]
[312048583,1705576233094,-300.0,0.000227,8]
[312048584,1705576233103,-155.27249028,0.00022701,2]
[312048585,1705576233112,-357.26,0.0002271,2]
[312048586,1705576233122,-150.0,0.00022722,2]
[312048587,1705576233131,-150.0,0.00022724,2]
[312048588,1705576233141,-150.0,0.00022728,2]
[312048589,1705576233150,-303.57339466,0.00022734,2]
[312048590,1705576233159,-302.40176682,0.00022748,2]
[312048591,1705576233168,-150.0,0.00022763,2]
[312048592,1705576233178,-154.0,0.00022766,2]
[312048593,1705576233187,-150.0,0.00022771,2]
[312048594,1705576233196,-150.0,0.00022793,2]
[312048595,1705576233206,-150.0,0.00022799,2]
[312048596,1705576233214,-150.0,0.000228,2]
[312048597,1705576233223,-150.0,0.000228,2]
[312048598,1705576233233,-150.0,0.000228,2]
[312048599,1705576233242,-150.0,0.000228,2]
[312048600,1705576233253,-300.0,0.000228,8]
[312048601,1705576233262,-150.0,0.00022806,2]
[312048602,1705576233274,-180.23358335,0.00022811,2]
[312048603,1705576233285,-150.0,0.00022812,2]
[312048604,1705576233294,-200.0,0.00022814,2]
[312048605,1705576233303,-800.0,0.00022814,2]
[312048606,1705576233313,-800.0,0.00022815,2]
[312048607,1705576233322,-1405.14,0.00022818,2]
[312048608,1705576233331,-150.0,0.00022822,2]
[312048609,1705576233340,-300.0,0.00022824,2]
[312048610,1705576233351,-1688.0,0.0002283,2]
[312048611,1705576233360,-245.22630715,0.00022831,2]
[312048612,1705576233369,-150.0,0.00022836,2]
[312048613,1705576233379,-150.0,0.00022847,2]
[312048614,1705576233388,-150.0,0.00022848,2]
[312048615,1705576233397,-300.0,0.00022849,2]
[312048616,1705576233406,-150.0,0.00022852,2]
[312048617,1705576233415,-150.0,0.00022853,2]
[312048618,1705576233425,-150.0,0.00022855,2]
[312048619,1705576233434,-150.0,0.00022861,2]
[312048620,1705576233443,-150.0,0.00022863,2]
[312048621,1705576233452,-911.93655198,0.00022878,3]
[312048622,1705576233461,-300.0,0.00022878,2]
[312048623,1705576233470,-150.0,0.00022881,2]
[312048624,1705576233479,-150.0,0.00022885,2]
[312048625,1705576233488,-500.0,0.00022891,2]
[312048626,1705576233499,-16000.0,0.00022891,2]
[312048627,1705576233508,-160.0,0.00022891,2]
[312048628,1705576233517,-150.0,0.00022898,2]
[312048629,1705576233526,-150.0,0.00022899,2]
[312048630,1705576233535,-261.85614087,0.00022899,2]
[312048631,1705576233546,-261.85614087,0.00022899,2]
[312048632,1705576233555,-261.85614087,0.000229,2]
[312048633,1705576233564,-250.0,0.000229,2]
[312048634,1705576233573,-2778.254,0.000229,2]
[312048635,1705576233582,-15019.63915667,0.000229,2]
[312048647,1705576237408,-8612.43843895,0.000229,2]
[312048648,1705576237419,-541.98537446,0.000229,2]
[312048649,1705576237430,-1788.25695,0.000229,2]
[312048650,1705576237442,-729.82228752,0.000229,2]
[312048651,1705576237454,-9603.7401185,0.000229,2]
[312048652,1705576237465,-358.33485164,0.000229,2]
[312048653,1705576237482,-363.48635591,0.000229,2]
[312048654,1705576237494,-769.22313,0.000229,2]
[312048655,1705576237511,-394.73047548,0.000229,2]
[312048656,1705576237522,-19257.55958767,0.000229,2]
[312048657,1705576237570,-10736.21554177,0.000229,2]
[312048658,1705576237581,-317.13206227,0.000229,2]
[312048659,1705576237592,-3740.42332155,0.000229,2]
[312048660,1705576237631,-584.03258028,0.000229,2]
[312048661,1705576237643,-12853.11436733,0.000229,2]
[312048662,1705576237652,-2082.38859866,0.000229,2]
[312048663,1705576237664,-634.15246496,0.000229,2]
[312048664,1705576237689,-214.21497815,0.000229,2]
[312048665,1705576237699,-500.0,0.000229,2]
[312048666,1705576237708,-16000.0,0.000229,2]
[312048667,1705576237717,-151.99870647,0.000229,2]
[312048668,1705576237726,-160.0,0.000229,2]
[312048669,1705576237736,-150.0,0.000229,2]
[312048670,1705576237745,-150.0,0.000229,2]
[312048671,1705576237756,-150.0,0.000229,2]
[312048672,1705576237765,-155.23,0.000229,2]
[312048673,1705576237774,-418.24,0.000229,2]
[312048674,1705576237783,-150.0,0.000229,2]
[312048675,1705576237792,-150.0,0.000229,2]
[312048676,1705576237802,-150.0,0.000229,2]
[312048677,1705576237812,-418.24,0.000229,2]
[312048678,1705576237821,-150.0,0.000229,2]
[312048679,1705576237831,-150.0,0.000229,2]
[312048680,1705576237840,-150.0,0.000229,2]
[312048681,1705576237849,-150.0,0.000229,2]
[312048682,1705576237859,-808.77,0.000229,2]
[312048683,1705576237868,-261.85614087,0.000229,2]